bitfinex/quotes_ETHUSD_20210701
["timestamp","ask_amount","ask_price","bid_price","bid_amount"]
[1625114942228,31.1438,2199.7,2198.7,5.66923521]
[1625114942325,31.1438,2199.7,2198.7,0.2]
[1625114942527,20.6037,2199.7,2198.5,7.28326034]
[1625114942730,20.6037,2199.7,2198.6,0.14]
[1625114943426,27.42051,2199.7,2199.0,6.81656]
[1625114943526,6.81681,2199.7,2199.0,6.81656]
[1625114944664,5.01,2199.5,2199.0,6.81656]
[1625114944865,6.81681,2199.7,2199.0,6.81656]
[1625114944968,6.81681,2199.7,2199.1,0.08]
[1625114945266,6.81681,2199.7,2199.0,6.81656]
[1625114947430,6.81681,2199.7,2198.8,9.08875]
[1625114948131,6.81681,2199.7,2198.9,5.75612111]
[1625114948270,6.81681,2199.7,2198.9,5.81612111]
[1625114948376,6.81681,2199.7,2198.9,0.06]
[1625114948775,6.81681,2199.7,2198.9,5.82646695]
[1625114948973,6.81681,2199.7,2198.9,0.06]
[1625114949176,6.81681,2199.7,2198.9,5.78720328]
[1625114949274,6.81681,2199.7,2198.9,0.06]
[1625114949374,6.81681,2199.7,2198.8,9.08875]
[1625114949477,6.81681,2199.7,2199.0,6.81655]
[1625114949674,6.81681,2199.7,2198.8,9.08875]
[1625114951071,6.81681,2199.7,2198.9,5.67963894]
[1625114951174,6.81681,2199.7,2198.9,12.49646894]
[1625114951271,6.76681,2199.7,2198.9,12.49646894]
[1625114951370,6.76681,2199.7,2199.0,0.04]
[1625114951675,6.76681,2199.7,2198.7,5.99366663]
[1625114951870,6.76681,2199.7,2198.7,6.13366663]
[1625114952374,5.01,2199.5,2198.9,6.81704]
[1625114953031,5.01,2199.7,2198.9,6.81704]
[1625114953134,5.01,2199.7,2198.7,6.1458676]
[1625114953230,4.9282187,2199.6,2198.7,0.01220097]
[1625114953333,5.01,2199.7,2198.7,0.01220097]
[1625114953334,6.1037,2199.7,2198.7,0.01220097]
[1625114953531,6.81831,2199.2,2198.7,0.01220097]
[1625114953634,10.89271,2199.2,2198.7,0.01220097]
[1625114953736,5.01,2199.0,2198.7,0.01220097]
[1625114954328,4.91,2199.0,2198.7,0.01220097]
[1625114955173,6.81946,2198.9,2198.7,0.01220097]
[1625114955979,10.22957,2198.9,2198.7,0.01220097]
[1625114956081,12.61,2198.8,2198.7,0.01220097]
[1625114956279,19.43038,2198.8,2198.7,0.01220097]
[1625114959489,11.83038,2198.8,2198.7,0.01220097]
[1625114960487,6.82038,2198.8,2198.7,0.01220097]
[1625114963329,13.57038,2198.8,2198.7,0.01220097]
[1625114964673,18.58038,2198.8,2198.7,0.01220097]
[1625114966379,11.83038,2198.8,2198.7,0.01220097]
[1625114966580,6.82038,2198.8,2198.7,0.01220097]
[1625114966685,3.40999,2199.0,2198.7,0.01220097]
[1625114966792,31.1864,2199.5,2198.7,0.01220097]
[1625114966981,19.72648,2199.4,2198.7,0.01220097]
[1625114967084,9.09108,2199.4,2198.7,0.01220097]
[1625114967289,20.3794,2199.5,2198.7,0.01220097]
[1625114967382,10.4246,2199.5,2198.7,0.03045351]
[1625114967679,10.4246,2199.5,2198.7,0.01220097]
[1625114967982,5.01,2199.3,2198.7,0.01220097]
[1625114968494,11.82797,2199.3,2198.7,0.01220097]
[1625114968588,5.01,2199.3,2198.8,0.26]
[1625114969190,5.01,2199.3,2198.8,0.14]
[1625114969489,5.01,2199.3,2198.8,6.95717]
[1625114970091,5.01,2199.3,2198.8,0.14]
[1625114970292,5.01,2199.3,2198.7,0.01220097]
[1625114970593,5.01,2199.2,2198.7,0.01220097]
[1625114972425,6.81892,2199.0,2198.7,0.01220097]
[1625114973177,14.1019,2199.2,2198.7,0.01220097]
[1625114973275,5.01,2199.2,2198.7,0.01220097]
[1625114973474,26.3336132,2199.5,2198.7,0.01220097]
[1625114973475,5.01,2199.3,2198.7,0.01220097]
[1625114973778,22.92427,2199.5,2198.7,6.82987097]
[1625114973880,10.4246,2199.5,2198.8,0.18]
[1625114974256,10.4246,2199.5,2198.8,0.14]
[1625114974655,10.4246,2199.5,2198.9,0.01043466]
[1625114975376,10.4246,2199.5,2199.0,0.14]
[1625114975476,17.24199,2199.5,2199.0,0.14]
[1625114975574,6.81739,2199.5,2199.0,0.14]
[1625114976277,5.01,2199.3,2199.0,0.14]
[1625114976679,6.81753,2199.4,2199.0,0.14]
[1625114976982,5.01,2199.2,2199.0,0.14]
[1625114977133,5.01,2199.2,2198.9,0.01043466]
[1625114977233,6.8183026,2199.6,2198.9,0.01043466]
[1625114977234,5.01,2199.3,2198.9,0.01043466]
[1625114977335,5.01,2199.4,2198.9,0.01043466]
[1625114977732,6.8183026,2199.6,2198.9,0.01043466]
[1625114977830,5.01,2199.4,2198.9,0.01043466]
[1625114978339,11.82838,2199.2,2198.9,0.01043466]
[1625114980053,5.01,2199.1,2198.9,0.01043466]
[1625114980253,5.01,2199.0,2198.9,0.01043466]
[1625114980455,5.01,2199.1,2198.9,0.01043466]
[1625114980858,5.72952865,2199.0,2198.9,0.01043466]
[1625114980977,26.45953,2199.0,2198.9,0.01043466]
[1625114981158,34.45953,2199.0,2198.9,0.01043466]
[1625114981253,26.59953,2199.0,2198.9,0.01043466]
[1625114981356,18.3,2198.9,2197.8,6.01397794]
[1625114981457,8.42028,2198.8,2197.7,3.5]
[1625114981556,5.01,2198.7,2197.7,1.0]
[1625114981759,5.01,2198.6,2197.7,1.0]
[1625114981985,5.01,2198.5,2197.7,1.0]
[1625114982184,6.82088,2198.4,2197.7,6.82074]
[1625114982284,6.6964,2198.4,2197.7,6.82074]
[1625114982483,3.0964,2198.4,2197.7,6.82074]
[1625114982583,3.0964,2198.4,2197.8,0.06]
[1625114983389,9.91705,2198.4,2197.8,6.88061]
[1625114983587,9.91705,2198.4,2197.9,0.04]
[1625114984425,3.0964,2198.4,2197.9,0.04]
[1625114984526,5.01,2198.5,2197.9,0.04]
[1625114984928,11.4942,2198.7,2197.9,0.04]
[1625114985034,2.4,2198.7,2197.9,5.86496265]
[1625114985132,4.89678,2198.8,2198.0,0.00938664]
[1625114985235,20.4713,2199.0,2198.0,0.16938664]
[1625114985332,10.0579,2199.0,2198.0,0.16938664]
[1625114985431,6.8194,2198.9,2198.1,0.14]
[1625114985536,6.8194,2198.9,2198.1,5.98158084]
[1625114985633,6.8194,2198.9,2198.2,0.06]
[1625114985834,3.40984,2199.1,2198.3,0.14]
[1625114985932,20.2845,2199.2,2198.3,0.14]
[1625114986230,5.01,2199.0,2198.3,0.14]
[1625114986579,5.01,2199.0,2198.4,0.06]
[1625114986781,5.01,2199.0,2198.5,0.14]
[1625114986882,5.01,2199.0,2198.6,6.81803]
[1625114987084,5.01,2199.0,2198.7,0.14]
[1625114987284,5.01,2199.1,2198.7,0.14]
[1625114987382,5.01,2199.1,2198.8,0.08]
[1625114987685,5.01,2199.1,2198.7,0.14]
[1625114988831,10.5938,2199.5,2198.7,5.9144668]
[1625114988930,10.5938,2199.5,2198.7,5.1223]
[1625114989099,10.5938,2199.5,2198.8,0.08]
[1625114989198,10.5438,2199.5,2198.8,0.08]
[1625114989400,10.5438,2199.5,2198.9,0.14]
[1625114989499,10.5438,2199.5,2198.9,6.95686]
[1625114989604,10.5438,2199.5,2198.9,0.14]
[1625114989909,10.5438,2199.5,2198.5,5.99121264]
[1625114990005,16.62289665,2199.5,2198.0,6.27985437]
[1625114990104,10.5438,2199.5,2198.3,0.14]
[1625114990205,14.0,2199.3,2198.3,0.14]
[1625114990300,19.01,2199.3,2198.3,0.14]
[1625114990600,5.01,2199.2,2198.3,0.14]
[1625114990799,5.01,2199.1,2198.3,0.14]
[1625114990987,5.01,2199.2,2198.3,0.14]
[1625114991338,5.01,2199.2,2198.3,6.22460014]
[1625114991439,6.81881,2199.0,2198.3,15.31531014]
[1625114991790,6.81881,2199.0,2198.3,0.14]
[1625114992290,5.01,2198.8,2198.3,0.14]
[1625114992392,5.01,2198.8,2198.0,0.00938664]
[1625114992490,6.82014,2198.6,2198.0,0.14938664]
[1625114992789,6.82014,2198.6,2198.1,0.12]
[1625114993251,6.82014,2198.6,2198.0,0.14938664]
[1625114994808,5.01,2198.4,2198.0,0.00938664]
[1625114994910,9.8212,2198.4,2198.0,0.00938664]
[1625114995907,6.82123,2198.3,2198.0,0.00938664]
[1625114996757,15.11,2198.1,2198.0,0.00938664]
[1625114996859,5.01,2198.1,2198.0,0.00938664]
[1625114997053,6.5536,2198.2,2198.0,0.00938664]
[1625114997155,1.5436,2198.2,2198.0,0.00938664]
[1625114997277,5.01,2198.1,2198.0,0.00938664]
[1625114997460,6.5536,2198.2,2198.0,0.00938664]
[1625114997558,1.5436,2198.2,2198.0,0.00938664]
[1625114997735,5.01,2198.1,2198.0,0.00938664]
[1625114997894,1.5436,2198.2,2198.0,0.00938664]
[1625114998091,5.01,2198.1,2198.0,0.00938664]
[1625114998290,1.5436,2198.2,2198.0,0.00938664]
[1625114998393,5.01,2198.1,2198.0,0.00938664]
[1625114998594,13.37525,2198.2,2198.0,0.00938664]
[1625114998800,11.83165,2198.2,2198.0,0.00938664]
[1625114998893,14.10523,2198.5,2198.0,0.00938664]
[1625114999092,5.01,2198.3,2198.0,0.00938664]
[1625114999493,5.01,2198.5,2198.0,0.00938664]
[1625115000095,5.01,2198.5,2198.0,0.14938664]
[1625115000297,9.9807,2198.7,2198.0,0.14938664]
[1625115000405,13.4556,2198.8,2198.0,0.14938664]
[1625115000499,10.6334,2199.0,2198.0,0.14938664]
[1625115000617,10.1334,2199.0,2198.1,3.29]
[1625115000698,9.9015,2199.2,2198.2,5.01]
[1625115000802,9.9015,2199.2,2198.3,5.01]
[1625115000898,9.9015,2199.2,2198.5,6.8182]
[1625115000999,14.0,2199.3,2198.5,10.7929]
[1625115001100,14.0,2199.3,2198.6,5.63612019]
[1625115001197,14.0,2199.3,2198.6,0.14]
[1625115002049,14.0,2199.3,2198.7,6.81779]
[1625115002149,14.0,2199.3,2198.7,0.04]
[1625115002296,14.0,2199.3,2198.8,0.14]
[1625115003393,14.0,2199.3,2198.8,6.9575]
[1625115007143,14.0,2199.3,2198.9,0.14]
[1625115007242,14.0,2199.3,2198.9,10.42958581]
[1625115007340,14.0,2199.3,2199.0,0.14]
[1625115007440,14.0,2199.3,2199.0,0.34]
[1625115007740,14.0,2199.3,2199.1,0.14]
[1625115008041,14.0,2199.3,2199.2,0.14]
[1625115008541,13.95,2199.3,2199.2,0.14]
[1625115008741,13.95,2199.3,2199.2,0.22]
[1625115009287,13.95,2199.3,2199.2,0.14]
[1625115009492,13.95,2199.3,2199.2,0.1614328]
[1625115009587,13.95,2199.3,2199.2,0.19496412]
[1625115009889,13.95,2199.3,2199.2,0.2070613]
[1625115011443,13.95,2199.3,2199.2,0.2470613]
[1625115013596,13.95,2199.3,2199.2,0.2070613]
[1625115015455,13.95,2199.3,2199.2,5.75758304]
[1625115015653,13.95,2199.3,2199.2,0.2670613]
[1625115016393,13.95,2199.3,2199.2,0.2070613]
[1625115019489,13.95,2199.3,2199.2,1.12411787]
[1625115019591,13.95,2199.3,2199.2,0.0670613]
[1625115019694,24.4849,2199.3,2199.2,0.0670613]
[1625115019807,30.0385636,2199.3,2199.2,0.0670613]
[1625115019893,38.0785636,2199.3,2199.2,0.0670613]
[1625115019989,32.2785636,2199.3,2199.2,0.0670613]
[1625115020268,26.7249,2199.3,2199.2,0.0670613]
[1625115020367,26.7249,2199.3,2199.2,0.01209718]
[1625115020469,26.7249,2199.3,2198.3,5.76403089]
[1625115020470,12.4,2199.2,2198.3,5.76403089]
[1625115020569,11.8295,2199.1,2198.3,5.76403089]
[1625115020669,5.01,2199.0,2198.3,5.76403089]
[1625115020769,11.8295,2199.1,2198.2,9.22943]
[1625115021469,11.8295,2199.1,2198.2,0.14]
[1625115022370,5.01,2199.1,2198.2,0.14]
[1625115022596,5.01,2199.1,2198.3,0.06]
[1625115022699,5.01,2199.1,2198.0,7.05899137]
[1625115022799,5.01,2199.1,2198.4,0.14]
[1625115024452,5.01,2199.1,2198.5,6.81813]
[1625115024552,5.01,2199.1,2198.2,6.12004763]
[1625115024650,5.01,2199.1,2198.5,0.14]
[1625115025100,5.01,2199.1,2198.2,6.12004763]
[1625115025203,5.01,2199.1,2198.2,6.26004763]
[1625115025299,5.01,2199.1,2198.2,0.14]
[1625115026398,11.82921,2199.1,2198.2,0.14]
[1625115027694,16.02241,2199.1,2198.2,0.14]
[1625115028396,24.02241,2199.1,2198.2,0.14]
[1625115029374,5.01,2199.0,2198.2,0.14]
[1625115029472,5.01,2198.9,2198.2,0.14]
[1625115030426,6.82028,2198.8,2198.2,0.14]
[1625115030631,5.01,2198.6,2198.2,0.14]
[1625115030830,5.01,2198.7,2198.2,0.14]
[1625115030929,5.01,2198.8,2198.2,0.14]
[1625115032339,5.01,2198.7,2198.2,0.14]
[1625115033092,5.01,2198.7,2198.2,0.14925402]
[1625115033390,5.01,2198.9,2198.2,0.14925402]
[1625115033842,5.01,2199.0,2198.2,0.14925402]
[1625115034041,5.01,2199.0,2198.2,0.09925402]
[1625115034429,5.01,2199.0,2198.2,9.19210402]
[1625115034525,5.01,2199.0,2198.3,5.86139915]
[1625115034630,5.01,2199.0,2198.3,6.06658197]
[1625115034730,5.01,2199.0,2198.4,0.32]
[1625115034828,10.5393,2199.2,2198.4,0.32]
[1625115035126,24.1468,2199.3,2198.4,0.32]
[1625115035328,24.1468,2199.3,2198.5,0.06]
[1625115035527,24.1468,2199.3,2198.8,6.81826]
[1625115035630,13.95,2199.3,2198.8,6.81826]
[1625115035731,13.95,2199.3,2198.9,6.42241112]
[1625115035831,13.95,2199.3,2199.0,0.12]
[1625115036010,13.95,2199.3,2199.0,0.26]
[1625115036107,13.95,2199.3,2199.0,0.14]
[1625115036709,13.95,2199.3,2199.1,6.81735]
[1625115036906,13.95,2199.3,2199.1,6.95735]
[1625115040300,13.95,2199.3,2199.1,12.55140241]
[1625115040401,13.95,2199.3,2199.1,12.54745669]
[1625115040546,13.95,2199.3,2199.2,0.12]
[1625115040645,13.95,2199.3,2199.2,6.93692]
[1625115041749,13.95,2199.3,2199.2,6.81692]
[1625115043495,13.95,2199.3,2199.2,12.49828203]
[1625115043593,13.95,2199.3,2199.2,6.81692]
[1625115043999,13.95,2199.3,2199.2,6.82584056]
[1625115044096,13.97273502,2199.3,2199.2,6.82584056]
[1625115045489,13.92273502,2199.3,2199.2,6.82584056]
[1625115048555,13.92273502,2199.3,2199.2,0.00892056]
[1625115050194,19.37462828,2199.3,2199.2,0.00892056]
[1625115051099,13.92273502,2199.3,2199.2,0.00892056]
[1625115052352,13.92273502,2199.3,2199.2,6.96579056]
[1625115052553,13.92273502,2199.3,2199.2,7.12579056]
[1625115053156,13.92273502,2199.3,2199.2,6.96579056]
[1625115053856,13.92273502,2199.3,2199.2,0.14892056]
[1625115053998,13.92273502,2199.3,2199.2,0.00892056]
[1625115061452,20.74135502,2199.3,2199.2,0.00892056]
[1625115065902,20.74135502,2199.3,2198.4,1.47620056]
[1625115065903,27.65,2199.2,2198.4,1.47620056]
[1625115066005,27.65,2199.1,2198.0,2.76749602]
[1625115066108,2.8,2198.7,2198.0,0.26749602]
[1625115066202,2.8,2198.7,2197.6,0.13376388]
[1625115066300,5.01,2198.5,2197.6,0.13376388]
[1625115066396,5.01784323,2198.4,2197.6,0.13376388]
[1625115066498,5.90952418,2198.3,2197.6,0.13376388]
[1625115066650,10.89219015,2198.3,2197.6,0.13376388]
[1625115066853,10.89219015,2198.3,2197.5,0.13377304]
[1625115066948,6.82199,2198.0,2197.5,0.13377304]
[1625115067051,9.96799,2198.0,2197.5,0.13377304]
[1625115067349,7.27476959,2198.0,2197.6,0.04]
[1625115068300,7.27476959,2198.0,2197.5,0.27377304]
[1625115068899,7.27476959,2198.0,2197.5,0.22377304]
[1625115069103,7.27476959,2198.0,2197.5,0.14]
[1625115069301,5.01,2197.8,2197.5,0.14]
[1625115070455,11.83227,2197.8,2197.5,0.14]
[1625115070557,5.01,2197.8,2197.5,0.14]
[1625115070755,5.01,2197.9,2197.5,0.14]
[1625115071055,5.01,2198.1,2197.5,0.14]
[1625115071456,5.01,2198.1,2197.4,0.13376257]
[1625115071758,5.71797072,2198.0,2197.4,0.13376257]
[1625115071858,5.01,2197.8,2197.4,0.13376257]
[1625115072334,5.01,2197.7,2197.2,0.26750279]
[1625115073042,5.54912829,2197.6,2197.2,0.26750279]
[1625115073139,5.58912829,2197.6,2197.2,0.26750279]
[1625115073237,9.01,2197.4,2197.2,0.26750279]
[1625115073339,21.54982742,2197.3,2197.1,0.40125419]
[1625115073539,13.49516581,2197.2,2197.1,0.40125419]
[1625115073639,5.69516581,2197.2,2197.1,0.40125419]
[1625115073741,13.69516581,2197.2,2197.1,0.40125419]
[1625115073840,13.69516581,2197.2,2196.4,6.99]
[1625115073841,5.69516581,2197.2,2196.4,7.3914074]
[1625115073939,5.01,2197.0,2196.4,7.3914074]
[1625115074140,5.01,2197.0,2196.4,6.99]
[1625115074265,5.01,2196.9,2196.5,0.12]
[1625115074354,3.03,2196.9,2196.5,0.12]
[1625115074453,5.46479563,2197.2,2196.5,0.12]
[1625115074555,4.0,2197.4,2196.5,5.84013613]
[1625115074853,21.0273,2197.7,2196.5,5.84013613]
[1625115074854,26.50805539,2197.7,2196.5,0.12]
[1625115075054,26.50805539,2197.7,2196.6,0.06]
[1625115075251,26.50805539,2197.7,2196.4,6.99]
[1625115075353,33.33211539,2197.7,2196.7,6.82382]
[1625115075454,41.33211539,2197.7,2196.7,6.82382]
[1625115075851,30.48061539,2197.7,2196.7,6.82382]
[1625115076255,5.01,2197.5,2196.4,0.14]
[1625115076356,5.44612768,2197.4,2196.4,0.14]
[1625115076496,5.46282546,2197.4,2196.4,0.14]
[1625115076600,10.47282546,2197.4,2196.4,0.14]
[1625115076695,5.01,2197.5,2196.4,0.14]
[1625115076897,5.50438539,2197.4,2196.4,0.14]
[1625115076996,5.01,2197.5,2196.4,0.14]
[1625115077395,5.01,2197.5,2196.5,6.82432]
[1625115077597,10.46958356,2197.5,2196.5,6.82432]
[1625115077699,5.01,2197.4,2196.5,6.82432]
[1625115077898,5.01,2197.3,2196.5,6.82432]
[1625115078754,5.01,2197.3,2196.6,5.85673072]
[1625115078845,5.01,2197.3,2196.7,0.16]
[1625115079149,5.01,2197.3,2196.5,6.82432]
[1625115082066,5.01,2197.3,2196.6,5.80220414]
[1625115082168,11.71504149,2197.7,2196.6,5.80220414]
[1625115082269,10.2186,2197.9,2196.7,0.18]
[1625115082368,10.2186,2197.9,2196.7,0.32]
[1625115082469,10.2186,2197.9,2196.8,0.2]
[1625115082670,10.2186,2197.9,2196.9,0.14]
[1625115083070,10.2186,2197.9,2197.1,6.82274]
[1625115083171,6.8232,2198.0,2197.1,6.82274]
[1625115083300,6.8232,2198.0,2197.2,5.66731641]
[1625115083397,5.01,2197.8,2197.2,5.66731641]
[1625115083596,5.01,2197.8,2197.1,6.96274]
[1625115083896,5.01,2197.8,2197.1,12.60445611]
[1625115084097,5.01,2197.8,2197.1,6.96274]
[1625115084450,5.01,2197.9,2197.1,0.14]
[1625115086420,6.82387,2197.7,2197.1,0.14]
[1625115087323,5.01,2197.5,2197.1,0.14]
[1625115087754,2.3160279,2197.5,2197.1,0.14]
[1625115087854,6.82387,2197.7,2197.1,0.14]
[1625115088061,6.82387,2197.7,2196.9,0.06]
[1625115088156,6.82387,2197.7,2196.8,0.14]
[1625115088566,11.4930389,2197.7,2196.8,0.14]
[1625115088757,19.4930389,2197.7,2196.8,0.14]
[1625115089058,6.82461,2197.4,2196.8,0.14]
[1625115089157,5.01,2197.2,2196.8,0.14]
[1625115090715,6.82461,2197.4,2196.8,0.14]
[1625115091013,5.01,2197.2,2196.8,0.14]
[1625115091214,5.01,2197.4,2196.8,0.14]
[1625115091316,5.01,2197.5,2196.8,0.14]
[1625115091515,5.01,2197.4,2196.8,0.14]
[1625115092359,24.7572689,2197.7,2196.8,0.14]
[1625115092460,6.8247,2197.3,2196.8,0.14]
[1625115092868,24.7572689,2197.7,2196.8,0.14]
[1625115092962,22.29874512,2197.7,2196.9,0.2]
[1625115093262,12.28914512,2197.7,2196.9,0.2]
[1625115093369,21.2218,2198.2,2196.9,0.2]
[1625115093472,6.82251,2198.1,2197.1,6.95834167]
[1625115093567,21.2218,2198.2,2197.1,6.96178175]
[1625115093672,21.2218,2198.2,2197.2,0.14]
[1625115093764,21.2218,2198.2,2197.2,4.0171]
[1625115093863,21.2218,2198.2,2197.3,5.97113186]
[1625115093963,10.5065,2198.2,2197.3,5.97113186]
[1625115094065,10.5065,2198.2,2197.4,0.14]
[1625115094265,10.5065,2198.2,2197.5,5.13]
[1625115094545,10.5065,2198.2,2197.6,0.14]
[1625115095932,10.5065,2198.2,2197.7,0.01021894]
[1625115096133,10.5065,2198.2,2197.7,0.15021894]
[1625115096534,9.8843,2198.3,2197.7,0.15021894]
[1625115096640,17.01713,2198.4,2197.7,0.15021894]
[1625115096874,5.01,2198.2,2197.7,0.15021894]
[1625115097675,11.83201,2198.2,2197.7,0.01021894]
[1625115098377,16.6099674,2198.2,2197.7,0.01021894]
[1625115098477,16.59921302,2198.2,2197.7,0.01021894]
[1625115099619,11.83201,2198.2,2197.7,0.01021894]
[1625115101270,5.01,2198.1,2197.7,0.01021894]
[1625115101666,6.82224,2198.2,2197.7,0.01021894]
[1625115101768,13.01,2198.4,2197.7,0.01021894]
[1625115101867,5.01,2198.2,2197.7,0.01021894]
[1625115103536,5.01,2198.2,2197.7,6.83190894]
[1625115104221,5.01,2198.2,2197.7,0.01021894]
[1625115104322,5.01,2198.3,2197.7,0.01021894]
[1625115104521,5.01,2198.3,2197.8,0.04]
[1625115104773,5.01,2198.3,2197.8,6.82155]
[1625115105812,11.83219,2198.3,2197.7,0.15021894]
[1625115106217,4.1,2198.5,2197.7,5.16021894]
[1625115106319,20.0515,2198.8,2197.8,6.35644285]
[1625115106413,20.0515,2198.8,2197.8,6.55644285]
[1625115106616,20.0515,2198.8,2197.9,0.14]
[1625115106814,20.0515,2198.8,2198.0,0.04]
[1625115106915,9.946,2198.8,2198.0,0.04]
[1625115107015,9.946,2198.8,2198.1,0.18]
[1625115107314,10.4906,2198.9,2198.1,0.18]
[1625115108465,10.4906,2198.9,2198.3,6.81989]
[1625115108566,6.81997,2199.0,2198.3,11.68029]
[1625115108664,10.8771,2199.2,2198.3,11.82029]
[1625115108762,10.8771,2199.2,2198.4,5.86421503]
[1625115108865,10.8771,2199.2,2198.4,5.90421503]
[1625115108965,23.01602502,2199.3,2198.4,5.86421503]
[1625115109063,27.83947156,2199.3,2198.3,6.1079]
[1625115109165,27.83947156,2199.3,2198.3,5.9679]
[1625115109265,2.21073678,2199.2,2198.4,0.14]
[1625115110336,5.01,2199.1,2198.4,0.14]
[1625115110425,6.82044,2198.9,2198.4,0.14]
[1625115111735,14.6,2198.8,2198.0,9.09351]
[1625115111838,21.42068,2198.8,2198.3,0.14]
[1625115111934,5.01,2198.6,2198.3,0.14]
[1625115112032,5.01,2198.6,2197.7,0.15021894]
[1625115112230,5.01,2198.6,2197.7,0.01021894]
[1625115112678,11.86653678,2198.6,2197.7,0.01021894]
[1625115112880,6.82208,2198.3,2197.7,0.01021894]
[1625115115323,6.80596258,2198.3,2197.7,0.01021894]
[1625115115928,9.01669936,2198.3,2197.7,0.01021894]
[1625115117479,24.01669936,2198.3,2197.7,0.01021894]
[1625115117678,5.01,2198.1,2197.7,0.01021894]
[1625115117882,6.82332,2197.9,2197.7,0.01021894]
[1625115119342,9.09776,2198.1,2197.7,0.01021894]
[1625115119537,12.68523678,2198.3,2197.7,0.15021894]
[1625115119639,10.4745,2198.3,2197.7,0.15021894]
[1625115120541,10.0924,2198.4,2197.8,0.08]
[1625115121588,10.0924,2198.4,2197.8,6.901]
[1625115121683,6.82149,2198.5,2197.8,6.821]
[1625115123685,6.82149,2198.5,2197.7,0.15021894]
[1625115123930,6.82149,2198.5,2197.7,5.79345536]
[1625115124129,6.82149,2198.5,2197.7,0.15021894]
[1625115124330,6.82149,2198.5,2197.8,0.06]
[1625115124523,6.82149,2198.5,2197.7,0.15021894]
[1625115125427,6.82149,2198.5,2197.8,6.82112]
[1625115125626,6.82149,2198.5,2197.9,0.14]
[1625115125824,6.82149,2198.5,2198.0,0.06]
[1625115125928,10.4276,2198.7,2198.0,0.06]
[1625115126161,39.5835083,2199.0,2198.0,0.14]
[1625115126261,5.01,2198.8,2198.0,0.14]
[1625115127165,31.1628,2199.0,2198.0,0.14]
[1625115127467,6.8206,2198.7,2198.0,6.96053]
[1625115127919,6.8206,2198.7,2198.1,0.04]
[1625115128018,6.8206,2198.7,2198.1,0.04995373]
[1625115128117,6.8206,2198.7,2198.1,0.00995373]
[1625115128783,31.1628,2199.0,2198.1,5.84989231]
[1625115128885,6.82008,2198.9,2198.1,6.83012373]
[1625115128980,6.82008,2198.9,2198.2,0.12]
[1625115129081,10.5772,2199.0,2198.2,0.26]
[1625115129186,10.5772,2199.0,2198.2,4.8431]
[1625115129283,2.21073678,2199.1,2198.2,4.8431]
[1625115129483,2.21073678,2199.1,2198.2,10.56055585]
[1625115129583,2.21073678,2199.1,2198.2,10.56820278]
[1625115129792,2.21073678,2199.1,2198.2,4.8431]
[1625115129881,6.81948,2199.0,2198.3,12.69925512]
[1625115130088,6.81948,2199.0,2198.3,12.83925512]
[1625115130184,2.21073678,2199.1,2198.3,6.99941]
[1625115130289,2.21073678,2199.1,2198.4,5.95056672]
[1625115130383,2.21073678,2199.1,2198.4,0.2]
[1625115130484,2.21073678,2199.1,2198.5,0.14]
[1625115131113,2.21073678,2199.1,2198.5,6.95888]
[1625115131214,9.853,2199.2,2198.6,6.26791754]
[1625115131313,13.92273502,2199.3,2198.6,6.26791754]
[1625115131411,13.92273502,2199.3,2198.8,5.01]
[1625115131517,13.92273502,2199.3,2198.9,6.15248192]
[1625115131613,13.92273502,2199.3,2198.9,6.29971746]
[1625115131713,13.92273502,2199.3,2198.9,6.52619577]
[1625115131812,13.92273502,2199.3,2198.9,0.34]
[1625115132061,13.92273502,2199.3,2199.0,0.16]
[1625115132258,13.92273502,2199.3,2199.1,0.14]
[1625115132361,13.92273502,2199.3,2199.2,6.81645]
[1625115132561,13.92273502,2199.3,2199.2,0.14]
[1625115134479,13.92273502,2199.3,2198.1,6.56281621]
[1625115134576,13.92273502,2199.3,2198.8,0.14]
[1625115134678,5.44304918,2199.2,2198.8,0.14]
[1625115134874,13.92273502,2199.3,2198.8,0.14]
[1625115135131,19.4728785,2199.3,2198.8,0.14]
[1625115135231,19.4728785,2199.3,2198.1,0.00995373]
[1625115135331,6.8198,2199.1,2198.1,6.82973373]
[1625115135434,5.66786054,2199.0,2198.2,0.14]
[1625115135832,5.01,2198.8,2198.2,0.14]
[1625115135933,5.01,2198.8,2198.1,0.00995373]
[1625115136039,5.40923056,2198.7,2198.1,0.00995373]
[1625115136132,9.87703056,2198.7,2198.1,0.00995373]
[1625115136731,6.82142,2198.5,2198.1,0.00995373]
[1625115141445,10.68922,2198.7,2198.1,0.00995373]
[1625115141547,9.09522,2198.7,2198.1,0.00995373]
[1625115150798,27.95313901,2199.0,2198.1,0.00995373]
[1625115150997,27.95313901,2199.0,2198.1,0.06995373]
[1625115151097,24.35313901,2199.0,2198.1,0.00995373]
[1625115151600,29.83775875,2199.0,2198.1,0.00995373]
[1625115152399,6.82033,2198.8,2198.1,6.83018373]
[1625115156483,6.82033,2198.8,2198.1,0.00995373]
[1625115160155,6.82033,2198.8,2198.2,0.14]
[1625115164055,5.01,2198.6,2198.1,0.00995373]
[1625115164492,5.01,2198.7,2198.1,0.00995373]
[1625115164991,10.51673776,2198.7,2198.1,0.00995373]
[1625115165102,6.82133,2198.4,2198.1,0.00995373]
[1625115165198,11.33803,2198.4,2198.1,0.00995373]